[Event "Late-Titled-Tuesday-Blitz-May-14-2024"]
[Site "Chess.com"]
[Date "2024.05.14"]
[Round "8"]
[White "WPWPWP-2015"]
[Black "DIMONBANAN"]
[Result "1-0"]
[WhiteElo "2458"]
[BlackElo "2597"]
[TimeControl "180+1"]
[EndTime "15:27:58 PDT"]
[Termination "WPWPWP-2015 won by checkmate"]

1. e4 {[%clk 0:02:59.4]} 1... e5 {[%clk 0:03:00.1]} 2. Nf3 {[%clk 0:02:59]} 2...
Nc6 {[%clk 0:03:00.7]} 3. d4 {[%clk 0:02:58.7]} 3... exd4 {[%clk 0:03:01.6]} 4.
Nxd4 {[%clk 0:02:59.1]} 4... Bc5 {[%clk 0:03:01.9]} 5. Nb3 {[%clk 0:02:58.3]}
5... Bb4+ {[%clk 0:03:02.4]} 6. Bd2 {[%clk 0:02:57.7]} 6... a5 {[%clk
0:03:02.1]} 7. Bc3 {[%clk 0:02:57.2]} 7... Nf6 {[%clk 0:03:01.2]} 8. Bd3 {[%clk
0:02:56.2]} 8... d5 {[%clk 0:02:55.6]} 9. exd5 {[%clk 0:02:51.2]} 9... Nxd5
{[%clk 0:02:55]} 10. Bxb4 {[%clk 0:02:47.4]} 10... axb4 {[%clk 0:02:43.5]} 11.
O-O {[%clk 0:02:45.5]} 11... O-O {[%clk 0:02:43.7]} 12. N1d2 {[%clk 0:02:38.6]}
12... Nf4 {[%clk 0:02:34]} 13. Be4 {[%clk 0:02:38.2]} 13... Be6 {[%clk
0:02:27.4]} 14. Qf3 {[%clk 0:02:35.7]} 14... Qg5 {[%clk 0:02:19.9]} 15. Bxc6
{[%clk 0:02:24.9]} 15... Bg4 {[%clk 0:02:12.8]} 16. Ne4 {[%clk 0:02:15.9]} 16...
Bxf3 {[%clk 0:02:12.5]} 17. Nxg5 {[%clk 0:02:15.2]} 17... Bxc6 {[%clk
0:02:11.8]} 18. Nd4 {[%clk 0:02:12.1]} 18... Bd5 {[%clk 0:01:58.3]} 19. Ngf3
{[%clk 0:01:58]} 19... c5 {[%clk 0:01:54.1]} 20. Nf5 {[%clk 0:01:54.5]} 20...
Bxf3 {[%clk 0:01:46.6]} 21. gxf3 {[%clk 0:01:54]} 21... Rfe8 {[%clk 0:01:47.1]}
22. Rfe1 {[%clk 0:01:50.9]} 22... Kf8 {[%clk 0:01:43.9]} 23. Nd6 {[%clk
0:01:47.9]} 23... Rxe1+ {[%clk 0:01:32]} 24. Rxe1 {[%clk 0:01:46.7]} 24... b6
{[%clk 0:01:32.9]} 25. a3 {[%clk 0:01:36.9]} 25... bxa3 {[%clk 0:01:23.4]} 26.
bxa3 {[%clk 0:01:37.8]} 26... Ne6 {[%clk 0:01:23.3]} 27. Nb5 {[%clk 0:01:31.1]}
27... Rd8 {[%clk 0:01:08.8]} 28. Kg2 {[%clk 0:01:18.2]} 28... Rd2 {[%clk
0:01:07.6]} 29. c4 {[%clk 0:01:13.7]} 29... Nf4+ {[%clk 0:00:48.5]} 30. Kg3
{[%clk 0:01:12.6]} 30... g5 {[%clk 0:00:49.1]} 31. h4 {[%clk 0:01:02]} 31... h6
{[%clk 0:00:48.7]} 32. hxg5 {[%clk 0:00:59.7]} 32... hxg5 {[%clk 0:00:48.7]} 33.
Nc7 {[%clk 0:00:46.4]} 33... Rd3 {[%clk 0:00:43.2]} 34. Re8+ {[%clk 0:00:41.7]}
34... Kg7 {[%clk 0:00:42.9]} 35. Rb8 {[%clk 0:00:40.4]} 35... Rxa3 {[%clk
0:00:38.5]} 36. Ne8+ {[%clk 0:00:39.5]} 36... Kg6 {[%clk 0:00:38]} 37. Rxb6+
{[%clk 0:00:38.6]} 37... Kf5 {[%clk 0:00:21.3]} 38. Nd6+ {[%clk 0:00:34.3]}
38... Ke5 {[%clk 0:00:18.8]} 39. Nxf7+ {[%clk 0:00:32.8]} 39... Kd4 {[%clk
0:00:19.5]} 40. Nxg5 {[%clk 0:00:23.5]} 40... Ne2+ {[%clk 0:00:20]} 41. Kg4
{[%clk 0:00:23.4]} 41... Kxc4 {[%clk 0:00:20.9]} 42. Ne6 {[%clk 0:00:16.9]}
42... Ra4 {[%clk 0:00:14.2]} 43. Kg5 {[%clk 0:00:15.1]} 43... Kd5 {[%clk
0:00:13.1]} 44. Nc7+ {[%clk 0:00:14.3]} 44... Ke5 {[%clk 0:00:11.3]} 45. Re6+
{[%clk 0:00:13.9]} 45... Kd4 {[%clk 0:00:10.6]} 46. Re4+ {[%clk 0:00:13.7]}
46... Kd3 {[%clk 0:00:09.8]} 47. Rxa4 {[%clk 0:00:13.6]} 47... c4 {[%clk
0:00:10.7]} 48. Nd5 {[%clk 0:00:13.4]} 48... c3 {[%clk 0:00:07.9]} 49. Ra3
{[%clk 0:00:13.3]} 49... Kc4 {[%clk 0:00:06.7]} 50. Nxc3 {[%clk 0:00:13.3]}
50... Nd4 {[%clk 0:00:06.6]} 51. Ne4 {[%clk 0:00:12.8]} 51... Kd5 {[%clk
0:00:06.2]} 52. Kf4 {[%clk 0:00:12.3]} 52... Ne6+ {[%clk 0:00:05.9]} 53. Ke3
{[%clk 0:00:12.6]} 53... Nc7 {[%clk 0:00:06.4]} 54. Rd3+ {[%clk 0:00:12.3]}
54... Ke6 {[%clk 0:00:06.8]} 55. f4 {[%clk 0:00:12.2]} 55... Kf5 {[%clk
0:00:07.1]} 56. Kf3 {[%clk 0:00:12.3]} 56... Ne6 {[%clk 0:00:07]} 57. Rd5+
{[%clk 0:00:12.1]} 57... Kg6 {[%clk 0:00:07.7]} 58. f5+ {[%clk 0:00:11.6]} 58...
Kh6 {[%clk 0:00:06.1]} 59. fxe6 {[%clk 0:00:12.5]} 59... Kg6 {[%clk 0:00:06.7]}
60. Rg5+ {[%clk 0:00:12.1]} 60... Kh6 {[%clk 0:00:06.4]} 61. Kf4 {[%clk
0:00:12.5]} 61... Kh7 {[%clk 0:00:07.3]} 62. Kf5 {[%clk 0:00:13]} 62... Kh8
{[%clk 0:00:07.9]} 63. Kf6 {[%clk 0:00:13.2]} 63... Kh7 {[%clk 0:00:08.8]} 64.
Rg4 {[%clk 0:00:13.5]} 64... Kh6 {[%clk 0:00:09.2]} 65. Rh4# {[%clk 0:00:13.5]}
1-0

[Event "Late-Titled-Tuesday-Blitz-May-14-2024"]
[Site "Chess.com"]
[Date "2024.05.14"]
[Round "8"]
[White "McCarthyStone"]
[Black "klifus"]
[Result "0-1"]
[WhiteElo "2419"]
[BlackElo "2159"]
[TimeControl "180+1"]
[EndTime "15:27:58 PDT"]
[Termination "klifus won on time"]

1. d4 {[%clk 0:03:00.9]} 1... Nf6 {[%clk 0:02:58.6]} 2. c4 {[%clk 0:03:00.3]}
2... g6 {[%clk 0:02:57.7]} 3. Nc3 {[%clk 0:02:59.5]} 3... Bg7 {[%clk 0:02:56]}
4. e4 {[%clk 0:02:55.9]} 4... d6 {[%clk 0:02:55.3]} 5. h3 {[%clk 0:02:55.7]}
5... O-O {[%clk 0:02:55]} 6. Be3 {[%clk 0:02:55.4]} 6... c5 {[%clk 0:02:53.5]}
7. Nf3 {[%clk 0:02:53.7]} 7... cxd4 {[%clk 0:02:51.6]} 8. Nxd4 {[%clk
0:02:54.6]} 8... Nc6 {[%clk 0:02:51.2]} 9. Be2 {[%clk 0:02:53.2]} 9... Nxd4
{[%clk 0:02:41.6]} 10. Bxd4 {[%clk 0:02:52.9]} 10... Be6 {[%clk 0:02:41.5]} 11.
O-O {[%clk 0:02:49.6]} 11... Qa5 {[%clk 0:02:25.7]} 12. a3 {[%clk 0:02:43.4]}
12... Rfc8 {[%clk 0:02:21.8]} 13. b4 {[%clk 0:02:38.4]} 13... Qd8 {[%clk
0:02:20.5]} 14. Nd5 {[%clk 0:02:21.1]} 14... Nxe4 {[%clk 0:02:10.8]} 15. Bxg7
{[%clk 0:02:20.5]} 15... Kxg7 {[%clk 0:02:10.1]} 16. Qd4+ {[%clk 0:02:21.1]}
16... Nf6 {[%clk 0:02:10.1]} 17. Nxf6 {[%clk 0:02:10.5]} 17... exf6 {[%clk
0:02:09.5]} 18. Rac1 {[%clk 0:02:09.5]} 18... Qe7 {[%clk 0:02:00.2]} 19. Rfd1
{[%clk 0:02:08.6]} 19... Bxh3 {[%clk 0:01:57.5]} 20. Bf3 {[%clk 0:01:57.7]}
20... Be6 {[%clk 0:01:53.4]} 21. Qxd6 {[%clk 0:01:36]} 21... Qxd6 {[%clk
0:01:50.6]} 22. Rxd6 {[%clk 0:01:36.9]} 22... Rxc4 {[%clk 0:01:49.1]} 23. Rxc4
{[%clk 0:01:34.6]} 23... Bxc4 {[%clk 0:01:48.7]} 24. Bxb7 {[%clk 0:01:35.5]}
24... Re8 {[%clk 0:01:44.1]} 25. Rc6 {[%clk 0:01:04.6]} 25... Bb5 {[%clk
0:01:19.8]} 26. Rc7 {[%clk 0:01:00.3]} 26... Re1+ {[%clk 0:01:15.2]} 27. Kh2
{[%clk 0:00:59.8]} 27... Ra1 {[%clk 0:01:12.3]} 28. Bd5 {[%clk 0:00:53.4]} 28...
Rxa3 {[%clk 0:01:11.9]} 29. Rxf7+ {[%clk 0:00:52.4]} 29... Kh6 {[%clk
0:01:11.6]} 30. Rxf6 {[%clk 0:00:51.4]} 30... Rd3 {[%clk 0:01:06]} 31. Bg8
{[%clk 0:00:42.6]} 31... Rd8 {[%clk 0:01:02.9]} 32. Bb3 {[%clk 0:00:31.4]} 32...
Rd4 {[%clk 0:01:02.6]} 33. Rf3 {[%clk 0:00:04]} 33... Rxb4 {[%clk 0:01:00.7]}
34. Bg8 {[%clk 0:00:04.6]} 34... Kg7 {[%clk 0:00:51.7]} 35. Bxh7 {[%clk
0:00:03.1]} 35... Kxh7 {[%clk 0:00:50.2]} 36. Rf7+ {[%clk 0:00:03.7]} 36... Kh6
{[%clk 0:00:49.7]} 37. Rxa7 {[%clk 0:00:04.6]} 37... Bc6 {[%clk 0:00:44.5]} 38.
Kg3 {[%clk 0:00:03]} 38... Rb3+ {[%clk 0:00:39.5]} 39. Kh2 {[%clk 0:00:03.5]}
39... Rb2 {[%clk 0:00:38.6]} 40. Kg3 {[%clk 0:00:04]} 40... Bd5 {[%clk
0:00:34.5]} 41. Ra5 {[%clk 0:00:03.5]} 41... Be4 {[%clk 0:00:33.2]} 42. Re5
{[%clk 0:00:03.1]} 42... Bf5 {[%clk 0:00:32.5]} 43. Ra5 {[%clk 0:00:03.2]} 43...
Rb3+ {[%clk 0:00:28.9]} 44. Kh2 {[%clk 0:00:03.5]} 44... Kg5 {[%clk 0:00:28.7]}
45. Rc5 {[%clk 0:00:02.9]} 45... Rb2 {[%clk 0:00:27.4]} 46. Kg3 {[%clk
0:00:02.4]} 46... Rb3+ {[%clk 0:00:27.2]} 47. Kh2 {[%clk 0:00:02.6]} 47... Kf4
{[%clk 0:00:27.2]} 48. Rc4+ {[%clk 0:00:02.3]} 48... Ke5 {[%clk 0:00:27.1]} 49.
Ra4 {[%clk 0:00:01.7]} 49... Rb1 {[%clk 0:00:24.3]} 50. Ra5+ {[%clk 0:00:01.9]}
50... Kd4 {[%clk 0:00:23.3]} 51. Kg3 {[%clk 0:00:02.8]} 51... Rb3+ {[%clk
0:00:21]} 52. Kh2 {[%clk 0:00:03.1]} 52... Kd3 {[%clk 0:00:20.3]} 53. Kg3 {[%clk
0:00:02.5]} 53... Rb2 {[%clk 0:00:18.2]} 54. Ra3+ {[%clk 0:00:01.7]} 54... Ke2
{[%clk 0:00:18.1]} 55. Re3+ {[%clk 0:00:01.6]} 55... Kf1 {[%clk 0:00:17.9]} 56.
Rf3 {[%clk 0:00:00.7]} 56... Rd2 {[%clk 0:00:13.1]} 0-1

[Event "Late-Titled-Tuesday-Blitz-May-14-2024"]
[Site "Chess.com"]
[Date "2024.05.14"]
[Round "8"]
[White "chessdjw"]
[Black "AlexeiShirov"]
[Result "1-0"]
[WhiteElo "2783"]
[BlackElo "2906"]
[TimeControl "180+1"]
[EndTime "15:28:01 PDT"]
[Termination "chessdjw won on time"]

1. d4 {[%clk 0:03:00.9]} 1... d5 {[%clk 0:02:58.8]} 2. c4 {[%clk 0:03:01.3]}
2... c6 {[%clk 0:02:58.3]} 3. Nf3 {[%clk 0:03:01.9]} 3... Nf6 {[%clk 0:02:57.9]}
4. g3 {[%clk 0:03:02.6]} 4... dxc4 {[%clk 0:02:53.3]} 5. Bg2 {[%clk 0:03:02.5]}
5... g6 {[%clk 0:02:52.6]} 6. O-O {[%clk 0:02:59.9]} 6... Bg7 {[%clk 0:02:51.9]}
7. a4 {[%clk 0:02:59.6]} 7... O-O {[%clk 0:02:30.7]} 8. Na3 {[%clk 0:02:59.2]}
8... Na6 {[%clk 0:02:27.8]} 9. Nxc4 {[%clk 0:02:58.6]} 9... Be6 {[%clk
0:02:27.4]} 10. b3 {[%clk 0:02:55.8]} 10... Ne4 {[%clk 0:02:23.3]} 11. Ba3
{[%clk 0:02:44.9]} 11... Bd5 {[%clk 0:02:20.2]} 12. Rc1 {[%clk 0:02:40.9]} 12...
Rc8 {[%clk 0:02:19.4]} 13. Qd3 {[%clk 0:02:34.7]} 13... c5 {[%clk 0:02:15.7]}
14. Rfd1 {[%clk 0:02:05.2]} 14... cxd4 {[%clk 0:02:08.4]} 15. Nxd4 {[%clk
0:02:05.1]} 15... Bxc4 {[%clk 0:01:53.2]} 16. Qxe4 {[%clk 0:01:50.9]} 16... f5
{[%clk 0:01:29.4]} 17. Qxb7 {[%clk 0:01:34.4]} 17... Rc7 {[%clk 0:01:26.4]} 18.
Qf3 {[%clk 0:00:53.9]} 18... Bxd4 {[%clk 0:01:22.7]} 19. bxc4 {[%clk 0:00:50.1]}
19... Rd7 {[%clk 0:01:14.7]} 20. Qc6 {[%clk 0:00:47.6]} 20... Nb8 {[%clk
0:01:01.7]} 21. Qe6+ {[%clk 0:00:45.3]} 21... Kg7 {[%clk 0:00:59.5]} 22. Rxd4
{[%clk 0:00:34.8]} 22... Rxd4 {[%clk 0:00:57.1]} 23. Bb2 {[%clk 0:00:34.9]}
23... Rf6 {[%clk 0:00:46.7]} 24. Bxd4 {[%clk 0:00:34]} 24... Qxd4 {[%clk
0:00:46.4]} 25. Qxe7+ {[%clk 0:00:34.2]} 25... Rf7 {[%clk 0:00:45.9]} 26. Qe3
{[%clk 0:00:31.7]} 26... Qxe3 {[%clk 0:00:36.4]} 27. fxe3 {[%clk 0:00:32.6]}
27... Rc7 {[%clk 0:00:24.5]} 28. c5 {[%clk 0:00:32.2]} 28... Nd7 {[%clk
0:00:24]} 29. c6 {[%clk 0:00:31.7]} 29... Kf6 {[%clk 0:00:23.8]} 30. Kf2 {[%clk
0:00:25.2]} 30... Ne5 {[%clk 0:00:22.1]} 31. h3 {[%clk 0:00:19.9]} 31... Ke7
{[%clk 0:00:21.5]} 32. Rc5 {[%clk 0:00:18.1]} 32... Kd6 {[%clk 0:00:21.4]} 33.
Rd5+ {[%clk 0:00:18.4]} 33... Ke6 {[%clk 0:00:21.3]} 34. Ra5 {[%clk 0:00:18.2]}
34... Kd6 {[%clk 0:00:20.7]} 35. Ra6 {[%clk 0:00:15.9]} 35... Nc4 {[%clk
0:00:20]} 36. g4 {[%clk 0:00:15.2]} 36... Kc5 {[%clk 0:00:19.5]} 37. gxf5 {[%clk
0:00:12.6]} 37... gxf5 {[%clk 0:00:19.2]} 38. Bf3 {[%clk 0:00:12.9]} 38... Kb4
{[%clk 0:00:18.8]} 39. Bd5 {[%clk 0:00:09.2]} 39... Ne5 {[%clk 0:00:18.2]} 40.
Be6 {[%clk 0:00:06.7]} 40... h6 {[%clk 0:00:17.4]} 41. Bxf5 {[%clk 0:00:06.4]}
41... Nc4 {[%clk 0:00:16.6]} 42. Bd7 {[%clk 0:00:04.4]} 42... Ne5 {[%clk
0:00:16]} 43. e4 {[%clk 0:00:03.2]} 43... h5 {[%clk 0:00:14.5]} 44. Ke3 {[%clk
0:00:03]} 44... Nxd7 {[%clk 0:00:13.6]} 45. cxd7 {[%clk 0:00:03]} 45... Rxd7
{[%clk 0:00:13.7]} 46. e5 {[%clk 0:00:01.9]} 46... Rd5 {[%clk 0:00:11.2]} 47.
Ke4 {[%clk 0:00:02.1]} 47... Rd2 {[%clk 0:00:10.7]} 48. e3 {[%clk 0:00:02.2]}
48... Rd7 {[%clk 0:00:07.8]} 49. e6 {[%clk 0:00:02.5]} 49... Rg7 {[%clk
0:00:07.3]} 50. Kf5 {[%clk 0:00:02.9]} 50... Rc7 {[%clk 0:00:06.2]} 51. Kf6
{[%clk 0:00:02.7]} 51... Rc3 {[%clk 0:00:05.7]} 52. e4 {[%clk 0:00:02.6]} 52...
Rf3+ {[%clk 0:00:02.9]} 53. Ke5 {[%clk 0:00:03]} 53... Rxh3 {[%clk 0:00:02.5]}
54. e7 {[%clk 0:00:03.4]} 1-0

[Event "Late-Titled-Tuesday-Blitz-May-14-2024"]
[Site "Chess.com"]
[Date "2024.05.14"]
[Round "8"]
[White "lamomiajunior"]
[Black "rasmussvane"]
[Result "0-1"]
[WhiteElo "2783"]
[BlackElo "2975"]
[TimeControl "180+1"]
[EndTime "15:28:02 PDT"]
[Termination "rasmussvane won by resignation"]

1. d4 {[%clk 0:03:00.9]} 1... d5 {[%clk 0:02:58.7]} 2. Nc3 {[%clk 0:03:00.8]}
2... Nf6 {[%clk 0:02:58.1]} 3. Bf4 {[%clk 0:03:01.2]} 3... c5 {[%clk 0:02:56.7]}
4. e4 {[%clk 0:02:59.6]} 4... Nxe4 {[%clk 0:02:49.8]} 5. Bb5+ {[%clk 0:02:59.2]}
5... Nc6 {[%clk 0:02:27.6]} 6. Nxe4 {[%clk 0:02:58.3]} 6... dxe4 {[%clk
0:02:27.3]} 7. Ne2 {[%clk 0:02:59.2]} 7... e6 {[%clk 0:02:20.1]} 8. O-O {[%clk
0:02:56.7]} 8... Qb6 {[%clk 0:02:15.3]} 9. a4 {[%clk 0:02:33.7]} 9... a6 {[%clk
0:02:12.5]} 10. Bxc6+ {[%clk 0:02:19.2]} 10... bxc6 {[%clk 0:02:07.2]} 11. dxc5
{[%clk 0:02:12.5]} 11... Bxc5 {[%clk 0:02:04.6]} 12. Nc3 {[%clk 0:02:12]} 12...
f5 {[%clk 0:01:57.4]} 13. Bd6 {[%clk 0:02:00.8]} 13... Bxd6 {[%clk 0:01:40.5]}
14. Qxd6 {[%clk 0:02:01.7]} 14... Ra7 {[%clk 0:01:41.1]} 15. Rfd1 {[%clk
0:01:58.8]} 15... Kf7 {[%clk 0:01:40]} 16. a5 {[%clk 0:01:57]} 16... Qc7 {[%clk
0:01:36.2]} 17. Qc5 {[%clk 0:01:56.5]} 17... Rb7 {[%clk 0:01:25.9]} 18. b3
{[%clk 0:01:55.5]} 18... Rd8 {[%clk 0:01:22.9]} 19. Rxd8 {[%clk 0:01:53]} 19...
Qxd8 {[%clk 0:01:23.8]} 20. Qxc6 {[%clk 0:01:38.4]} 20... Qc7 {[%clk 0:01:14.3]}
21. Qc4 {[%clk 0:01:27.1]} 21... Qxc4 {[%clk 0:01:09.8]} 22. bxc4 {[%clk
0:01:28]} 22... Bd7 {[%clk 0:01:05.8]} 23. Rd1 {[%clk 0:01:22.5]} 23... Ke7
{[%clk 0:01:02.9]} 24. h3 {[%clk 0:01:21.3]} 24... Rc7 {[%clk 0:01:02.6]} 25.
Rd4 {[%clk 0:01:18.9]} 25... Rc5 {[%clk 0:01:02.8]} 26. Na2 {[%clk 0:01:00.8]}
26... e5 {[%clk 0:00:53.2]} 27. Rd5 {[%clk 0:00:56.9]} 27... Rxc4 {[%clk
0:00:53.4]} 28. c3 {[%clk 0:00:44.4]} 28... Be6 {[%clk 0:00:52.5]} 29. Rd2
{[%clk 0:00:42.3]} 29... Bc8 {[%clk 0:00:40.7]} 30. Nb4 {[%clk 0:00:41.2]} 30...
Bb7 {[%clk 0:00:37.9]} 31. Nd5+ {[%clk 0:00:32.3]} 31... Bxd5 {[%clk 0:00:27.3]}
32. Rxd5 {[%clk 0:00:33.2]} 32... Ke6 {[%clk 0:00:27.8]} 33. Rd8 {[%clk
0:00:33.4]} 33... Rc5 {[%clk 0:00:28.1]} 34. Rg8 {[%clk 0:00:31.3]} 34... Kf7
{[%clk 0:00:25.1]} 35. Rh8 {[%clk 0:00:30]} 35... h6 {[%clk 0:00:24.9]} 36. Rb8
{[%clk 0:00:29.1]} 36... Rxa5 {[%clk 0:00:25]} 37. Kf1 {[%clk 0:00:29.6]} 37...
Rc5 {[%clk 0:00:24.7]} 38. Rb6 {[%clk 0:00:28.8]} 38... a5 {[%clk 0:00:21.5]}
39. Ra6 {[%clk 0:00:29.3]} 39... Rxc3 {[%clk 0:00:20.2]} 40. Rxa5 {[%clk
0:00:29.2]} 40... Ke6 {[%clk 0:00:20]} 41. Ra6+ {[%clk 0:00:29.8]} 41... Kd5
{[%clk 0:00:20]} 42. Ra5+ {[%clk 0:00:28.7]} 42... Rc5 {[%clk 0:00:20]} 43. Ra7
{[%clk 0:00:28.9]} 43... g5 {[%clk 0:00:20.2]} 44. Rh7 {[%clk 0:00:28.3]} 44...
Rc6 {[%clk 0:00:20.5]} 45. Rd7+ {[%clk 0:00:27.4]} 45... Rd6 {[%clk 0:00:19.9]}
46. Rf7 {[%clk 0:00:27.6]} 46... f4 {[%clk 0:00:19.4]} 47. Rc7 {[%clk
0:00:27.8]} 47... Kd4 {[%clk 0:00:18]} 48. Ke2 {[%clk 0:00:27.6]} 48... Kd5
{[%clk 0:00:17.9]} 49. g3 {[%clk 0:00:21.6]} 49... Rc6 {[%clk 0:00:17.4]} 50.
Rd7+ {[%clk 0:00:21.1]} 50... Ke6 {[%clk 0:00:17.7]} 51. Rh7 {[%clk 0:00:21.5]}
51... Rc2+ {[%clk 0:00:18]} 52. Ke1 {[%clk 0:00:21.6]} 52... e3 {[%clk 0:00:16]}
53. Rxh6+ {[%clk 0:00:20.9]} 53... Kd5 {[%clk 0:00:15]} 54. fxe3 {[%clk
0:00:21.4]} 54... f3 {[%clk 0:00:11.4]} 55. h4 {[%clk 0:00:18]} 55... g4 {[%clk
0:00:09.6]} 56. Rg6 {[%clk 0:00:18.6]} 56... Ke4 {[%clk 0:00:09.2]} 57. Ra6
{[%clk 0:00:17.2]} 57... Kxe3 {[%clk 0:00:08.8]} 58. Ra3+ {[%clk 0:00:17.9]}
58... Kd4 {[%clk 0:00:08.9]} 59. h5 {[%clk 0:00:18.4]} 59... Rh2 {[%clk
0:00:08.6]} 60. Ra4+ {[%clk 0:00:18.2]} 60... Ke3 {[%clk 0:00:08.8]} 61. Ra3+
{[%clk 0:00:17.7]} 61... Ke4 {[%clk 0:00:09.3]} 62. Ra4+ {[%clk 0:00:15]} 62...
Kf5 {[%clk 0:00:09.7]} 0-1

[Event "Late-Titled-Tuesday-Blitz-May-14-2024"]
[Site "Chess.com"]
[Date "2024.05.14"]
[Round "8"]
[White "slidingknight2775"]
[Black "Hakiki_satranc"]
[Result "1-0"]
[WhiteElo "2600"]
[BlackElo "2420"]
[TimeControl "180+1"]
[EndTime "15:28:02 PDT"]
[Termination "slidingknight2775 won by checkmate"]

1. Nf3 {[%clk 0:03:00.9]} 1... c5 {[%clk 0:02:59.4]} 2. g3 {[%clk 0:03:00.9]}
2... Nc6 {[%clk 0:02:59.6]} 3. Bg2 {[%clk 0:03:00.9]} 3... e5 {[%clk 0:03:00.2]}
4. c4 {[%clk 0:03:00.4]} 4... g6 {[%clk 0:03:00.2]} 5. Nc3 {[%clk 0:03:00.1]}
5... Bg7 {[%clk 0:03:00.6]} 6. O-O {[%clk 0:03:00.6]} 6... Nge7 {[%clk
0:03:00.6]} 7. d3 {[%clk 0:03:00.8]} 7... d6 {[%clk 0:02:59.8]} 8. Ne1 {[%clk
0:03:01.4]} 8... Be6 {[%clk 0:02:59.3]} 9. Nc2 {[%clk 0:03:02.1]} 9... d5 {[%clk
0:02:58.9]} 10. cxd5 {[%clk 0:03:03]} 10... Nxd5 {[%clk 0:02:59.4]} 11. Ne3
{[%clk 0:03:02.2]} 11... Nxc3 {[%clk 0:02:41.9]} 12. bxc3 {[%clk 0:03:03.1]}
12... Rc8 {[%clk 0:02:37.9]} 13. Rb1 {[%clk 0:02:45.3]} 13... b6 {[%clk
0:02:35.3]} 14. c4 {[%clk 0:02:44.6]} 14... O-O {[%clk 0:02:32]} 15. Nd5 {[%clk
0:02:43.8]} 15... Ne7 {[%clk 0:02:28.2]} 16. Nxe7+ {[%clk 0:02:37.3]} 16... Qxe7
{[%clk 0:02:29.1]} 17. a4 {[%clk 0:02:37.7]} 17... Rfd8 {[%clk 0:02:13.9]} 18.
Qc2 {[%clk 0:02:33.4]} 18... h5 {[%clk 0:02:05.5]} 19. h4 {[%clk 0:02:32.8]}
19... Rb8 {[%clk 0:01:54.7]} 20. a5 {[%clk 0:02:31.4]} 20... Qc7 {[%clk
0:01:50.3]} 21. Be3 {[%clk 0:02:28.5]} 21... Bd7 {[%clk 0:01:34.5]} 22. Rb2
{[%clk 0:02:10.1]} 22... Bc6 {[%clk 0:01:33.5]} 23. Bxc6 {[%clk 0:01:50.1]}
23... Qxc6 {[%clk 0:01:34.4]} 24. Rb3 {[%clk 0:01:48.1]} 24... Rd7 {[%clk
0:01:31]} 25. Rfb1 {[%clk 0:01:46.7]} 25... Rdb7 {[%clk 0:01:25.3]} 26. Rb5
{[%clk 0:01:40.4]} 26... a6 {[%clk 0:01:17.5]} 27. Rxb6 {[%clk 0:01:38.4]} 27...
Rxb6 {[%clk 0:01:18]} 28. Rxb6 {[%clk 0:01:37.3]} 28... Rxb6 {[%clk 0:01:18.6]}
29. axb6 {[%clk 0:01:38]} 29... Qxb6 {[%clk 0:01:19.5]} 30. Qa4 {[%clk
0:01:35.8]} 30... Bf8 {[%clk 0:01:03.1]} 31. Qe8 {[%clk 0:01:28.3]} 31... Qe6
{[%clk 0:00:59.4]} 32. Qa8 {[%clk 0:01:10.8]} 32... Kg7 {[%clk 0:00:51.3]} 33.
Bh6+ {[%clk 0:01:10.1]} 33... Kxh6 {[%clk 0:00:48.2]} 34. Qxf8+ {[%clk
0:01:10.6]} 34... Kh7 {[%clk 0:00:48.9]} 35. Qxc5 {[%clk 0:01:11.2]} 35... e4
{[%clk 0:00:45.1]} 36. Kg2 {[%clk 0:00:32.8]} 36... exd3 {[%clk 0:00:43.9]} 37.
exd3 {[%clk 0:00:33.7]} 37... Qe2 {[%clk 0:00:23.5]} 38. Qd5 {[%clk 0:00:27.7]}
38... Kg8 {[%clk 0:00:23.1]} 39. c5 {[%clk 0:00:24.9]} 39... a5 {[%clk
0:00:17.7]} 40. c6 {[%clk 0:00:24.4]} 40... Qc2 {[%clk 0:00:14]} 41. Qd7 {[%clk
0:00:10.4]} 41... Qa4 {[%clk 0:00:09.8]} 42. Qd8+ {[%clk 0:00:06.6]} 42... Kh7
{[%clk 0:00:09.9]} 43. c7 {[%clk 0:00:06.4]} 43... Qc6+ {[%clk 0:00:09.6]} 44.
Kg1 {[%clk 0:00:06.3]} 44... Qc1+ {[%clk 0:00:08.6]} 45. Kg2 {[%clk 0:00:06.6]}
45... Qc6+ {[%clk 0:00:07.8]} 46. Kh2 {[%clk 0:00:06.1]} 46... Qc5 {[%clk
0:00:06.9]} 47. d4 {[%clk 0:00:05.2]} 47... Qc2 {[%clk 0:00:07.4]} 48. Kg2
{[%clk 0:00:04.4]} 48... Qe4+ {[%clk 0:00:06.4]} 49. Kg1 {[%clk 0:00:04.4]}
49... Qe1+ {[%clk 0:00:05.9]} 50. Kg2 {[%clk 0:00:05]} 50... Qe4+ {[%clk
0:00:06.6]} 51. Kh2 {[%clk 0:00:05.5]} 51... Qf3 {[%clk 0:00:04.9]} 52. Kg1
{[%clk 0:00:03.4]} 52... Qd1+ {[%clk 0:00:03.5]} 53. Kg2 {[%clk 0:00:03.3]}
53... Qe2 {[%clk 0:00:01.4]} 54. c8=Q {[%clk 0:00:03.6]} 54... Qe4+ {[%clk
0:00:02.1]} 55. Kg1 {[%clk 0:00:04]} 55... Qe1+ {[%clk 0:00:02.1]} 56. Kg2
{[%clk 0:00:04.3]} 56... Qe4+ {[%clk 0:00:02.7]} 57. Kh2 {[%clk 0:00:04.8]}
57... Qf3 {[%clk 0:00:02.7]} 58. Qh8# {[%clk 0:00:05.2]} 1-0